Workbook

Sheet 云岩区2023年公开招聘事业单位工作人员笔试、面试及总成绩
A1: 云岩区2023年公开招聘事业单位工作人员笔试、面试及总成绩
A2: 序号 | B2: 姓名 | C2: 准考证号 | D2: 报考单位 | E2: 报考岗位 | F2: 职业能力倾向测验分数 | G2: 综合应用能力分数 | H2: 笔试卷面总成绩 | I2: 笔试成绩（百分制） | J2: 笔试折算成绩 （笔试百分制*0.6） | K2: 面试成绩 | L2: 面试折算成绩 （面试成绩*0.4） | M2: 总成绩
A3: 1 | B3: 刘松 | C3: 1152950100709 | D3: 云岩区政府直属-201022001云岩区城市更新事务中心 | E3: 20102200101业务科室工作人员 | F3: 123 | G3: 97.5 | H3: 220.5 | I3: =H3/3 -> 73.50 | J3: =ROUND(H3/3*0.6,2) -> 44.10 | K3: 82.00 | L3: =ROUND(K3*0.4,2) -> 32.80 | M3: =J3+L3 -> 76.90
A4: 2 | B4: 辛加巧 | C4: 1152950201320 | D4: 云岩区政府直属-201022001云岩区城市更新事务中心 | E4: 20102200101业务科室工作人员 | F4: 118 | G4: 98 | H4: 216 | I4: =H4/3 -> 72.00 | J4: 43.20 | K4: 83.60 | L4: 33.44 | M4: 76.64
A5: 3 | B5: 张可 | C5: 1152950200802 | D5: 云岩区政府直属-201022001云岩区城市更新事务中心 | E5: 20102200101业务科室工作人员 | F5: 123 | G5: 85 | H5: 208 | I5: =H5/3 -> 69.33 | J5: 41.60 | K5: 81.60 | L5: 32.64 | M5: 74.24
A6: 4 | B6: 刘颖 | C6: 1152950203108 | D6: 云岩区政府直属-201022002云岩区人民政府政务服务中心 | E6: 20102200201办公室工作人员 | F6: 99 | G6: 104.5 | H6: 203.5 | I6: 67.83 | J6: 40.70 | K6: 84.00 | L6: 33.60 | M6: 74.30
A7: 5 | B7: 彭丽湘 | C7: 1152950300610 | D7: 云岩区政府直属-201022002云岩区人民政府政务服务中心 | E7: 20102200201办公室工作人员 | F7: 90 | G7: 102 | H7: 192 | I7: 64.00 | J7: 38.40 | K7: 84.80 | L7: 33.92 | M7: 72.32
A8: 6 | B8: 龙晶晶 | C8: 1152950100717 | D8: 云岩区政府直属-201022002云岩区人民政府政务服务中心 | E8: 20102200201办公室工作人员 | F8: 99.5 | G8: 94.5 | H8: 194 | I8: 64.67 | J8: 38.80 | K8: 72.20 | L8: 28.88 | M8: 67.68
A9: 7 | B9: 龙庆晴 | C9: 1152950200827 | D9: 云岩区政府直属-201022003云岩区园区建设服务中心 | E9: 20102200301建设科工作人员 | F9: 110 | G9: 90.5 | H9: 200.5 | I9: 66.83 | J9: 40.10 | K9: 84.00 | L9: 33.60 | M9: 73.70
A10: 8 | B10: 赵有琪 | C10: 1152950101412 | D10: 云岩区政府直属-201022003云岩区园区建设服务中心 | E10: 20102200301建设科工作人员 | F10: 102 | G10: 102 | H10: 204 | I10: 68.00 | J10: 40.80 | K10: 82.00 | L10: 32.80 | M10: 73.60
A11: 9 | B11: 刘子峻 | C11: 1152950202022 | D11: 云岩区政府直属-201022003云岩区园区建设服务中心 | E11: 20102200301建设科工作人员 | F11: 107 | G11: 90 | H11: 197 | I11: 65.67 | J11: 39.40 | K11: 79.00 | L11: 31.60 | M11: 71.00
A12: 10 | B12: 张诗悦 | C12: 1152950401018 | D12: 云岩区政府直属-201022003云岩区园区建设服务中心 | E12: 20102200302财务工作人员 | F12: 106.5 | G12: 99 | H12: 205.5 | I12: 68.50 | J12: 41.10 | K12: 76.20 | L12: 30.48 | M12: 71.58
A13: 11 | B13: 徐梦婷 | C13: 1152950201427 | D13: 云岩区政府直属-201022003云岩区园区建设服务中心 | E13: 20102200302财务工作人员 | F13: 106 | G13: 93 | H13: 199 | I13: 66.33 | J13: 39.80 | K13: 77.80 | L13: 31.12 | M13: 70.92
A14: 12 | B14: 徐帆禹 | C14: 1152950201220 | D14: 云岩区政府直属-201022003云岩区园区建设服务中心 | E14: 20102200302财务工作人员 | F14: 107.5 | G14: 92.5 | H14: 200 | I14: 66.67 | J14: 40.00 | K14: 75.80 | L14: 30.32 | M14: 70.32
A15: 13 | B15: 邓贇 | C15: 1152950301111 | D15: 云岩区委办公室-201022004云岩区电子政务内网管理中心 | E15: 20102200401电子政务内网管理中心工作人员 | F15: 91.5 | G15: 110.5 | H15: 202 | I15: 67.33 | J15: 40.40 | K15: 81.20 | L15: 32.48 | M15: 72.88
A16: 14 | B16: 张学瑾 | C16: 1152950201214 | D16: 云岩区委办公室-201022004云岩区电子政务内网管理中心 | E16: 20102200401电子政务内网管理中心工作人员 | F16: 105.5 | G16: 93.5 | H16: 199 | I16: 66.33 | J16: 39.80 | K16: 81.80 | L16: 32.72 | M16: 72.52
A17: 15 | B17: 陈炫吉 | C17: 1152950400127 | D17: 云岩区委办公室-201022004云岩区电子政务内网管理中心 | E17: 20102200401电子政务内网管理中心工作人员 | F17: 111 | G17: 88 | H17: 199 | I17: 66.33 | J17: 39.80 | K17: 77.40 | L17: 30.96 | M17: 70.76
A18: 16 | B18: 周佳伟 | C18: 1152950301105 | D18: 云岩区委办公室-201022004云岩区电子政务内网管理中心 | E18: 20102200401电子政务内网管理中心工作人员 | F18: 113 | G18: 88 | H18: 201 | I18: 67.00 | J18: 40.20 | K18: 75.80 | L18: 30.32 | M18: 70.52
A19: 17 | B19: 胡昆 | C19: 1152950401406 | D19: 云岩区委政法委-201022005云岩区社会治理综合服务中心 | E19: 20102200501综合科工作人员 | F19: 67.5 | G19: 84.5 | H19: 152 | I19: 50.67 | J19: 30.40 | K19: 76.20 | L19: 30.48 | M19: 60.88
A20: 18 | B20: 刘紫寒 | C20: 1152950200426 | D20: 云岩区人民政府办公室-201022006云岩区消防服务中心 | E20: 20102200601火灾防控科工作人员 | F20: 93.5 | G20: 99 | H20: 192.5 | I20: 64.17 | J20: 38.50 | K20: 83.00 | L20: 33.20 | M20: 71.70
A21: 19 | B21: 万忠群 | C21: 1152950101122 | D21: 云岩区人民政府办公室-201022006云岩区消防服务中心 | E21: 20102200601火灾防控科工作人员 | F21: 102.5 | G21: 94 | H21: 196.5 | I21: 65.50 | J21: 39.30 | K21: 81.00 | L21: 32.40 | M21: 71.70
A22: 20 | B22: 姚雪虹 | C22: 1152950202912 | D22: 云岩区人民政府办公室-201022006云岩区消防服务中心 | E22: 20102200601火灾防控科工作人员 | F22: 103.5 | G22: 88.5 | H22: 192 | I22: 64.00 | J22: 38.40 | K22: 79.00 | L22: 31.60 | M22: 70.00
A23: 21 | B23: 田桂松 | C23: 1152950400502 | D23: 云岩区人民政府办公室-201022006云岩区消防服务中心 | E23: 20102200602火灾防控科工作人员 | F23: 98 | G23: 98 | H23: 196 | I23: 65.33 | J23: 39.20 | K23: 79.80 | L23: 31.92 | M23: 71.12
A24: 22 | B24: 宋觉 | C24: 1152950301518 | D24: 云岩区人民政府办公室-201022006云岩区消防服务中心 | E24: 20102200602火灾防控科工作人员 | F24: 93.5 | G24: 94 | H24: 187.5 | I24: 62.50 | J24: 37.50 | K24: 83.60 | L24: 33.44 | M24: 70.94
A25: 23 | B25: 杨凯 | C25: 1152950101819 | D25: 云岩区人民政府办公室-201022006云岩区消防服务中心 | E25: 20102200602火灾防控科工作人员 | F25: 104 | G25: 83 | H25: 187 | I25: 62.33 | J25: 37.40 | K25: 76.60 | L25: 30.64 | M25: 68.04
A26: 24 | B26: 陈晓娇 | C26: 1152950301227 | D26: 云岩区人民政府办公室-201022006云岩区消防服务中心 | E26: 20102200603基础管理科工作人员 | F26: 92 | G26: 85.5 | H26: 177.5 | I26: 59.17 | J26: 35.50 | K26: 83.00 | L26: 33.20 | M26: 68.70
A27: 25 | B27: 漆丽 | C27: 1152950201013 | D27: 云岩区人民政府办公室-201022006云岩区消防服务中心 | E27: 20102200603基础管理科工作人员 | F27: 50.5 | G27: 91 | H27: 141.5 | I27: 47.17 | J27: 28.30 | K27: 77.40 | L27: 30.96 | M27: 59.26
A28: 26 | B28: 方成群 | C28: 1152950201014 | D28: 云岩区人民政府办公室-201022006云岩区消防服务中心 | E28: 20102200603基础管理科工作人员 | F28: 59 | G28: 71 | H28: 130 | I28: 43.33 | J28: 26.00 | K28: 78.20 | L28: 31.28 | M28: 57.28
A29: 27 | B29: 张鼎玺 | C29: 1152950202211 | D29: 中共云岩区委编办-201022007云岩区事业单位登记管理局 | E29: 20102200701工作人员 | F29: 97 | G29: 114.5 | H29: 211.5 | I29: 70.50 | J29: 42.30 | K29: 84.40 | L29: 33.76 | M29: 76.06
A30: 28 | B30: 冯璐 | C30: 1152950202502 | D30: 中共云岩区委编办-201022007云岩区事业单位登记管理局 | E30: 20102200701工作人员 | F30: 97.5 | G30: 103 | H30: 200.5 | I30: 66.83 | J30: 40.10 | K30: 78.80 | L30: 31.52 | M30: 71.62
A31: 29 | B31: 罗雨晴 | C31: 1152950100312 | D31: 中共云岩区委编办-201022007云岩区事业单位登记管理局 | E31: 20102200701工作人员 | F31: 108.5 | G31: 95 | H31: 203.5 | I31: 67.83 | J31: 40.70 | K31: 76.00 | L31: 30.40 | M31: 71.10
A32: 30 | B32: 谢宇 | C32: 1152950400408 | D32: 云岩区自然资源局-201022008云岩区自然资源局三马片区自然资源所 | E32: 20102200801办公室工作人员 | F32: 100 | G32: 106 | H32: 206 | I32: 68.67 | J32: 41.20 | K32: 79.60 | L32: 31.84 | M32: 73.04
A33: 31 | B33: 李志慧 | C33: 1152950201825 | D33: 云岩区自然资源局-201022008云岩区自然资源局三马片区自然资源所 | E33: 20102200801办公室工作人员 | F33: 93.5 | G33: 106.5 | H33: 200 | I33: 66.67 | J33: 40.00 | K33: 81.00 | L33: 32.40 | M33: 72.40
A34: 32 | B34: 况梅 | C34: 1152950101820 | D34: 云岩区自然资源局-201022008云岩区自然资源局三马片区自然资源所 | E34: 20102200801办公室工作人员 | F34: 97 | G34: 94 | H34: 191 | I34: 63.67 | J34: 38.20 | K34: 81.00 | L34: 32.40 | M34: 70.60
A35: 33 | B35: 杨恒 | C35: 1152950201715 | D35: 云岩区医疗保障局-201022009云岩区医疗保障服务中心 | E35: 20102200901基金财务科工作人员 | F35: 114 | G35: 98 | H35: 212 | I35: 70.67 | J35: 42.40 | K35: 84.20 | L35: 33.68 | M35: 76.08
A36: 34 | B36: 唐雪 | C36: 1152950401210 | D36: 云岩区医疗保障局-201022009云岩区医疗保障服务中心 | E36: 20102200901基金财务科工作人员 | F36: 105.5 | G36: 99.5 | H36: 205 | I36: =H36/3 -> 68.33 | J36: 41.00 | K36: 82.20 | L36: 32.88 | M36: 73.88
A37: 35 | B37: 费莎媛 | C37: 1152950400206 | D37: 云岩区医疗保障局-201022009云岩区医疗保障服务中心 | E37: 20102200901基金财务科工作人员 | F37: 108 | G37: 97.5 | H37: 205.5 | I37: 68.50 | J37: 41.10 | K37: 81.60 | L37: 32.64 | M37: 73.74
A38: 36 | B38: 张春梅 | C38: 1152950100629 | D38: 云岩区应急管理局-201022010云岩区应急救援保障服中心 | E38: 20102201001综合科工作人员 | F38: 97 | G38: 103.5 | H38: 200.5 | I38: 66.83 | J38: 40.10 | K38: 83.20 | L38: 33.28 | M38: 73.38
A39: 37 | B39: 秦袁圆 | C39: 1152950400326 | D39: 云岩区应急管理局-201022010云岩区应急救援保障服中心 | E39: 20102201001综合科工作人员 | F39: 109.5 | G39: 85.5 | H39: 195 | I39: 65.00 | J39: 39.00 | K39: 80.80 | L39: 32.32 | M39: 71.32
A40: 38 | B40: 熊俊祎 | C40: 1152950101919 | D40: 云岩区应急管理局-201022010云岩区应急救援保障服中心 | E40: 20102201001综合科工作人员 | F40: 113.5 | G40: 75 | H40: 188.5 | I40: 62.83 | J40: 37.70 | K40: 83.60 | L40: 33.44 | M40: 71.14
A41: 39 | B41: 陈沁雯 | C41: 1152950202312 | D41: 云岩区统计局-201022011云岩区社会经济调查中心 | E41: 20102201101工作人员 | F41: 109 | G41: 87.5 | H41: 196.5 | I41: 65.50 | J41: 39.30 | K41: 80.60 | L41: 32.24 | M41: 71.54
A42: 40 | B42: 雷恬 | C42: 1152950202103 | D42: 云岩区统计局-201022011云岩区社会经济调查中心 | E42: 20102201101工作人员 | F42: 101 | G42: 100 | H42: 201 | I42: 67.00 | J42: 40.20 | K42: 76.40 | L42: 30.56 | M42: 70.76
A43: 41 | B43: 田欢欢 | C43: 1152950200613 | D43: 云岩区统计局-201022011云岩区社会经济调查中心 | E43: 20102201101工作人员 | F43: 97.5 | G43: 100.5 | H43: 198 | I43: 66.00 | J43: 39.60 | K43: 77.40 | L43: 30.96 | M43: 70.56
A44: 42 | B44: 王瑜 | C44: 1152950300618 | D44: 云岩区商务局-201022012云岩区对外开放事务服务中心 | E44: 20102201201工作人员 | F44: 117 | G44: 103 | H44: 220 | I44: 73.33 | J44: 44.00 | K44: 79.80 | L44: 31.92 | M44: 75.92
A45: 43 | B45: 李应荣 | C45: 1152950101425 | D45: 云岩区商务局-201022012云岩区对外开放事务服务中心 | E45: 20102201201工作人员 | F45: 106.5 | G45: 106.5 | H45: 213 | I45: 71.00 | J45: 42.60 | K45: 81.00 | L45: 32.40 | M45: 75.00
A46: 44 | B46: 滕阳 | C46: 1152950301215 | D46: 云岩区商务局-201022012云岩区对外开放事务服务中心 | E46: 20102201201工作人员 | F46: 99.5 | G46: 107.5 | H46: 207 | I46: 69.00 | J46: 41.40 | K46: 82.40 | L46: 32.96 | M46: 74.36
A47: 45 | B47: 郑嘉铖 | C47: 1152950401125 | D47: 云岩区商务局-201022012云岩区对外开放事务服务中心 | E47: 20102201201工作人员 | F47: 105.5 | G47: 101.5 | H47: 207 | I47: 69.00 | J47: 41.40 | K47: 81.40 | L47: 32.56 | M47: 73.96
A48: 46 | B48: 汪芳雪 | C48: 1152950202809 | D48: 云岩区商务局-201022012云岩区对外开放事务服务中心 | E48: 20102201201工作人员 | F48: 103 | G48: 104 | H48: 207 | I48: 69.00 | J48: 41.40 | K48: 77.40 | L48: 30.96 | M48: 72.36
A49: 47 | B49: 孙埼恩 | C49: 1152950400323 | D49: 云岩区商务局-201022012云岩区对外开放事务服务中心 | E49: 20102201201工作人员 | F49: 111.5 | G49: 95.5 | H49: 207 | I49: 69.00 | J49: 41.40 | K49: 76.20 | L49: 30.48 | M49: 71.88
A50: 48 | B50: 陈昱钢 | C50: 1152950301322 | D50: 云岩区投资促进局-201022013云岩区投资促进局 | E50: 20102201301招商工作人员 | F50: 104.5 | G50: 93 | H50: 197.5 | I50: 65.83 | J50: 39.50 | K50: 76.00 | L50: 30.40 | M50: 69.90
A51: 49 | B51: 梁文曼 | C51: 1152950300920 | D51: 云岩区投资促进局-201022013云岩区投资促进局 | E51: 20102201301招商工作人员 | F51: 84.5 | G51: 105.5 | H51: 190 | I51: 63.33 | J51: 38.00 | K51: 79.60 | L51: 31.84 | M51: 69.84
A52: 50 | B52: 罗红梅 | C52: 1152950200313 | D52: 云岩区投资促进局-201022013云岩区投资促进局 | E52: 20102201301招商工作人员 | F52: 93 | G52: 95 | H52: 188 | I52: 62.67 | J52: 37.60 | K52: 77.60 | L52: 31.04 | M52: 68.64
A53: 51 | B53: 高雅 | C53: 1152950401508 | D53: 云岩区投资促进局-201022013云岩区投资促进局 | E53: 20102201302办公室工作人员 | F53: 93.5 | G53: 99 | H53: 192.5 | I53: 64.17 | J53: 38.50 | K53: 77.60 | L53: 31.04 | M53: 69.54
A54: 52 | B54: 郭迪梦 | C54: 1152950101623 | D54: 云岩区投资促进局-201022013云岩区投资促进局 | E54: 20102201302办公室工作人员 | F54: 87 | G54: 101 | H54: 188 | I54: 62.67 | J54: 37.60 | K54: 77.00 | L54: 30.80 | M54: 68.40
A55: 53 | B55: 张云亚 | C55: 1152950301004 | D55: 云岩区投资促进局-201022013云岩区投资促进局 | E55: 20102201302办公室工作人员 | F55: 87 | G55: 96.5 | H55: 183.5 | I55: 61.17 | J55: 36.70 | K55: 76.40 | L55: 30.56 | M55: 67.26
A56: 54 | B56: 李荣滢 | C56: 1152950202226 | D56: 云岩区民政局-201022014云岩区婚姻登记服务中心 | E56: 20102201401工作人员 | F56: 104.5 | G56: 98 | H56: 202.5 | I56: 67.50 | J56: 40.50 | K56: 81.60 | L56: 32.64 | M56: 73.14
A57: 55 | B57: 张子聪 | C57: 1152950100110 | D57: 云岩区民政局-201022014云岩区婚姻登记服务中心 | E57: 20102201401工作人员 | F57: 104 | G57: 90 | H57: 194 | I57: 64.67 | J57: 38.80 | K57: 84.20 | L57: 33.68 | M57: 72.48
A58: 56 | B58: 李丽 | C58: 1152950400407 | D58: 云岩区民政局-201022014云岩区婚姻登记服务中心 | E58: 20102201401工作人员 | F58: 113 | G58: 81 | H58: 194 | I58: 64.67 | J58: 38.80 | K58: 80.00 | L58: 32.00 | M58: 70.80
A59: 57 | B59: 张杰 | C59: 1152950203405 | D59: 云岩区退役军人事务局-201022015云岩区军队离退休干部休养所 | E59: 20102201501办公室工作人员 | F59: 96 | G59: 103 | H59: 199 | I59: 66.33 | J59: 39.80 | K59: 80.00 | L59: 32.00 | M59: 71.80
A60: 58 | B60: 冉旭东 | C60: 1152950202918 | D60: 云岩区退役军人事务局-201022015云岩区军队离退休干部休养所 | E60: 20102201501办公室工作人员 | F60: 92 | G60: 93.5 | H60: 185.5 | I60: 61.83 | J60: 37.10 | K60: 76.00 | L60: 30.40 | M60: 67.50
A61: 59 | B61: 卢华 | C61: 1152950200627 | D61: 云岩区退役军人事务局-201022015云岩区军队离退休干部休养所 | E61: 20102201501办公室工作人员 | F61: 84 | G61: 88 | H61: 172 | I61: 57.33 | J61: 34.40 | K61: 弃考 | L61: 0.00 | M61: 34.40
A62: 60 | B62: 姚文婷 | C62: 1152950200825 | D62: 云岩区综合行政执法局-201022016云岩区市政工程管理所 | E62: 20102201601人事劳资科工作人员 | F62: 82.5 | G62: 105.5 | H62: 188 | I62: 62.67 | J62: 37.60 | K62: 80.00 | L62: =ROUND(K62*0.4,2) -> 32.00 | M62: 69.60
A63: 61 | B63: 杨先霞 | C63: 1152950100422 | D63: 云岩区综合行政执法局-201022016云岩区市政工程管理所 | E63: 20102201601人事劳资科工作人员 | F63: 88 | G63: 94.5 | H63: 182.5 | I63: 60.83 | J63: 36.50 | K63: 81.20 | L63: =ROUND(K63*0.4,2) -> 32.48 | M63: 68.98
A64: 62 | B64: 张娴智 | C64: 1152950101319 | D64: 云岩区综合行政执法局-201022016云岩区市政工程管理所 | E64: 20102201601人事劳资科工作人员 | F64: 103.5 | G64: 78.5 | H64: 182 | I64: 60.67 | J64: 36.40 | K64: 79.40 | L64: =ROUND(K64*0.4,2) -> 31.76 | M64: 68.16
A65: 63 | B65: 吴帆 | C65: 1152950202408 | D65: 云岩区综合行政执法局-201022016云岩区市政工程管理所 | E65: 20102201602专业技术人员 | F65: 94.5 | G65: 92 | H65: 186.5 | I65: 62.17 | J65: 37.30 | K65: 78.40 | L65: =ROUND(K65*0.4,2) -> 31.36 | M65: 68.66
A66: 64 | B66: 龙杰 | C66: 1152950201122 | D66: 云岩区综合行政执法局-201022016云岩区市政工程管理所 | E66: 20102201602专业技术人员 | F66: 94 | G66: 95 | H66: 189 | I66: 63.00 | J66: 37.80 | K66: 73.20 | L66: =ROUND(K66*0.4,2) -> 29.28 | M66: 67.08
A67: 65 | B67: 孙雨欣 | C67: 1152950301120 | D67: 云岩区综合行政执法局-201022016云岩区市政工程管理所 | E67: 20102201602专业技术人员 | F67: 103 | G67: 92.5 | H67: 195.5 | I67: 65.17 | J67: =ROUND(H67/3*0.6,2) -> 39.10 | K67: 弃考 | L67: 0.00 | M67: =J67+L67 -> 39.10
A68: 66 | B68: 王克桃 | C68: 1152950202405 | D68: 云岩区司法局-201022017贵州省贵阳市立诚公证处 | E68: 20102201701公证处工作人员 | F68: 69 | G68: 68.5 | H68: 137.5 | I68: =H68/3 -> 45.83 | J68: 27.50 | K68: 74.40 | L68: =ROUND(K68*0.4,2) -> 29.76 | M68: 57.26
A69: 67 | B69: 毕雨婷 | C69: 1152950401312 | D69: 云岩区住房和城乡建设局-201022018云岩区房屋租赁和物业管理服务中心 | E69: 20102201801工作人员 | F69: 112 | G69: 96.5 | H69: 208.5 | I69: 69.50 | J69: 41.70 | K69: 82.20 | L69: 32.88 | M69: 74.58
A70: 68 | B70: 曾越 | C70: 1152950100226 | D70: 云岩区住房和城乡建设局-201022018云岩区房屋租赁和物业管理服务中心 | E70: 20102201801工作人员 | F70: 118 | G70: 94.5 | H70: 212.5 | I70: 70.83 | J70: 42.50 | K70: 79.00 | L70: 31.60 | M70: 74.10
A71: 69 | B71: 张红 | C71: 1152950202617 | D71: 云岩区住房和城乡建设局-201022018云岩区房屋租赁和物业管理服务中心 | E71: 20102201801工作人员 | F71: 113 | G71: 93 | H71: 206 | I71: 68.67 | J71: 41.20 | K71: 81.80 | L71: 32.72 | M71: 73.92
A72: 70 | B72: 张雪 | C72: 1152950200703 | D72: 云岩区发展和改革局-201022019云岩区粮食和物资储备保障中心 | E72: 20102201901综合科工作人员 | F72: 77.5 | G72: 86 | H72: 163.5 | I72: 54.50 | J72: 32.70 | K72: 79.00 | L72: 31.60 | M72: 64.30
A73: 71 | B73: 张漫金 | C73: 1152950101320 | D73: 云岩区发展和改革局-201022019云岩区粮食和物资储备保障中心 | E73: 20102201901综合科工作人员 | F73: 52.5 | G73: 83.5 | H73: 136 | I73: 45.33 | J73: 27.20 | K73: 77.60 | L73: 31.04 | M73: 58.24
A74: 72 | B74: 何志敏 | C74: 1152950100120 | D74: 云岩区发展和改革局-201022019云岩区粮食和物资储备保障中心 | E74: 20102201901综合科工作人员 | F74: 78 | G74: 74.5 | H74: 152.5 | I74: 50.83 | J74: 30.50 | K74: 弃考 | L74: 0.00 | M74: 30.50
A75: 73 | B75: 杨曼仪 | C75: 1152950401307 | D75: 云岩区市场监督管理局-201022020云岩区市场监督管理局信息中心 | E75: 20102202001办公室工作人员 | F75: 114.5 | G75: 106.5 | H75: 221 | I75: 73.67 | J75: 44.20 | K75: 78.00 | L75: =ROUND(K75*0.4,2) -> 31.20 | M75: 75.40
A76: 74 | B76: 罗俊夫 | C76: 1152950301206 | D76: 云岩区市场监督管理局-201022020云岩区市场监督管理局信息中心 | E76: 20102202001办公室工作人员 | F76: 115 | G76: 93 | H76: 208 | I76: 69.33 | J76: 41.60 | K76: 82.60 | L76: =ROUND(K76*0.4,2) -> 33.04 | M76: 74.64
A77: 75 | B77: 郭厶溢 | C77: 1152950101530 | D77: 云岩区市场监督管理局-201022020云岩区市场监督管理局信息中心 | E77: 20102202001办公室工作人员 | F77: 119.5 | G77: 90 | H77: 209.5 | I77: 69.83 | J77: 41.90 | K77: 78.40 | L77: =ROUND(K77*0.4,2) -> 31.36 | M77: 73.26
A78: 76 | B78: 周虹 | C78: 1152950301122 | D78: 云岩区财政局-201022021云岩区职工财会学校 | E78: 20102202101工作人员 | F78: 86 | G78: 99.5 | H78: 185.5 | I78: 61.83 | J78: 37.10 | K78: 78.40 | L78: =ROUND(K78*0.4,2) -> 31.36 | M78: 68.46
A79: 77 | B79: 孙雯倩 | C79: 1152950300514 | D79: 云岩区财政局-201022021云岩区职工财会学校 | E79: 20102202101工作人员 | F79: 71.5 | G79: 92 | H79: 163.5 | I79: 54.50 | J79: 32.70 | K79: 79.80 | L79: =ROUND(K79*0.4,2) -> 31.92 | M79: 64.62
A80: 78 | B80: 何鹏 | C80: 1152950400308 | D80: 云岩区财政局-201022021云岩区职工财会学校 | E80: 20102202101工作人员 | F80: 79.5 | G80: 85 | H80: 164.5 | I80: 54.83 | J80: 32.90 | K80: 弃考 | L80: 0.00 | M80: 32.90
A81: 79 | B81: 黄诗媛 | C81: 1152950200614 | D81: 云岩区卫生健康局-201022022云岩区第二人民医院 | E81: 20102202201康复医师 | F81: 82 | G81: 78.5 | H81: 160.5 | I81: 53.50 | J81: 32.10 | K81: 77.60 | L81: =ROUND(K81*0.4,2) -> 31.04 | M81: 63.14
A82: 80 | B82: 李萍 | C82: 1152950100219 | D82: 云岩区卫生健康局-201022022云岩区第二人民医院 | E82: 20102202201康复医师 | F82: 64 | G82: 66.5 | H82: 130.5 | I82: 43.50 | J82: 26.10 | K82: 71.60 | L82: 28.64 | M82: 54.74
A83: 81 | B83: 姚芸 | C83: 1152950202713 | D83: 云岩区卫生健康局-201022022云岩区第二人民医院 | E83: 20102202201康复医师 | F83: 58.5 | G83: 82.5 | H83: 141 | I83: 47.00 | J83: 28.20 | K83: 65.00 | L83: 26.00 | M83: 54.20
A84: 82 | B84: 江洪霞 | C84: 1152950301420 | D84: 云岩区卫生健康局-201022022云岩区第二人民医院 | E84: 20102202202影像学医师 | F84: 86 | G84: 85.5 | H84: 171.5 | I84: 57.17 | J84: 34.30 | K84: 74.00 | L84: 29.60 | M84: 63.90
A85: 83 | B85: 钟宪琴 | C85: 1152950200203 | D85: 云岩区卫生健康局-201022022云岩区第二人民医院 | E85: 20102202202影像学医师 | F85: 65 | G85: 89 | H85: 154 | I85: 51.33 | J85: 30.80 | K85: 80.60 | L85: 32.24 | M85: 63.04
A86: 84 | B86: 黄春梦 | C86: 1152950401209 | D86: 云岩区卫生健康局-201022022云岩区第二人民医院 | E86: 20102202202影像学医师 | F86: 67.5 | G86: 79.5 | H86: 147 | I86: 49.00 | J86: 29.40 | K86: 68.80 | L86: 27.52 | M86: 56.92
A87: 85 | B87: 陆安娅 | C87: 1152950400430 | D87: 云岩区卫生健康局-201022023云岩区疾病预防控制中心 | E87: 20102202301财务岗 | F87: 114.5 | G87: 95.5 | H87: 210 | I87: 70.00 | J87: 42.00 | K87: 81.40 | L87: 32.56 | M87: 74.56
A88: 86 | B88: 万艺群 | C88: 1152950203003 | D88: 云岩区卫生健康局-201022023云岩区疾病预防控制中心 | E88: 20102202301财务岗 | F88: 100.5 | G88: 104.5 | H88: 205 | I88: 68.33 | J88: 41.00 | K88: 82.80 | L88: 33.12 | M88: 74.12
A89: 87 | B89: 杨远艳 | C89: 1152950101020 | D89: 云岩区卫生健康局-201022023云岩区疾病预防控制中心 | E89: 20102202301财务岗 | F89: 108.5 | G89: 98 | H89: 206.5 | I89: 68.83 | J89: 41.30 | K89: 79.60 | L89: 31.84 | M89: 73.14
A90: 88 | B90: 樊巧巧 | C90: 1152950201526 | D90: 云岩区卫生健康局-201022023云岩区疾病预防控制中心 | E90: 20102202301财务岗 | F90: 101 | G90: 98.5 | H90: 199.5 | I90: 66.50 | J90: 39.90 | K90: 79.60 | L90: 31.84 | M90: 71.74
A91: 89 | B91: 程灿灿 | C91: 1152950102109 | D91: 云岩区卫生健康局-201022023云岩区疾病预防控制中心 | E91: 20102202301财务岗 | F91: 105 | G91: 89.5 | H91: 194.5 | I91: 64.83 | J91: 38.90 | K91: 82.00 | L91: 32.80 | M91: 71.70
A92: 90 | B92: 何雪莲 | C92: 1152950300621 | D92: 云岩区卫生健康局-201022023云岩区疾病预防控制中心 | E92: 20102202301财务岗 | F92: 97.5 | G92: 100.5 | H92: 198 | I92: 66.00 | J92: 39.60 | K92: 80.20 | L92: 32.08 | M92: 71.68
A93: 91 | B93: 李巧 | C93: 1152950400813 | D93: 云岩区卫生健康局-201022023云岩区疾病预防控制中心 | E93: 20102202302检验岗 | F93: 93 | G93: 94 | H93: 187 | I93: 62.33 | J93: 37.40 | K93: 83.20 | L93: 33.28 | M93: 70.68
A94: 92 | B94: 罗永姣 | C94: 1152950101621 | D94: 云岩区卫生健康局-201022023云岩区疾病预防控制中心 | E94: 20102202302检验岗 | F94: 87 | G94: 89 | H94: 176 | I94: 58.67 | J94: 35.20 | K94: 79.40 | L94: 31.76 | M94: 66.96
A95: 93 | B95: 丁栋群 | C95: 1152950202121 | D95: 云岩区卫生健康局-201022023云岩区疾病预防控制中心 | E95: 20102202302检验岗 | F95: 93 | G95: 79.5 | H95: 172.5 | I95: 57.50 | J95: 34.50 | K95: 80.60 | L95: 32.24 | M95: 66.74
A96: 94 | B96: 邹丹丹 | C96: 1152950201928 | D96: 云岩区卫生健康局-201022023云岩区疾病预防控制中心 | E96: 20102202303检验岗 | F96: 84 | G96: 98 | H96: 182 | I96: 60.67 | J96: 36.40 | K96: 78.60 | L96: 31.44 | M96: 67.84
A97: 95 | B97: 袁子茜 | C97: 1152950100721 | D97: 云岩区卫生健康局-201022023云岩区疾病预防控制中心 | E97: 20102202303检验岗 | F97: 93.5 | G97: 77.5 | H97: 171 | I97: 57.00 | J97: 34.20 | K97: 80.80 | L97: 32.32 | M97: 66.52
A98: 96 | B98: 田吉 | C98: 1152950300817 | D98: 云岩区卫生健康局-201022023云岩区疾病预防控制中心 | E98: 20102202303检验岗 | F98: 83.5 | G98: 84.5 | H98: 168 | I98: 56.00 | J98: 33.60 | K98: 弃考 | L98: 0.00 | M98: 33.60
A99: 97 | B99: 陈爽 | C99: 1152950200305 | D99: 云岩区卫生健康局-201022023云岩区疾病预防控制中心 | E99: 20102202304公共卫生岗 | F99: 108 | G99: 109 | H99: 217 | I99: 72.33 | J99: 43.40 | K99: 84.40 | L99: =ROUND(K99*0.4,2) -> 33.76 | M99: 77.16
A100: 98 | B100: 黄远进 | C100: 1152950300613 | D100: 云岩区卫生健康局-201022023云岩区疾病预防控制中心 | E100: 20102202304公共卫生岗 | F100: 109 | G100: 98 | H100: 207 | I100: =H100/3 -> 69.00 | J100: 41.40 | K100: 85.00 | L100: 34.00 | M100: 75.40
A101: 99 | B101: 潘昱孜 | C101: 1152950101215 | D101: 云岩区卫生健康局-201022023云岩区疾病预防控制中心 | E101: 20102202304公共卫生岗 | F101: 105.5 | G101: 101 | H101: 206.5 | I101: 68.83 | J101: 41.30 | K101: 82.40 | L101: 32.96 | M101: 74.26
A102: 100 | B102: 文娱 | C102: 1152950400826 | D102: 云岩区卫生健康局-201022023云岩区疾病预防控制中心 | E102: 20102202304公共卫生岗 | F102: 101.5 | G102: 99 | H102: 200.5 | I102: 66.83 | J102: 40.10 | K102: 83.00 | L102: 33.20 | M102: 73.30
A103: 101 | B103: 吴艳多 | C103: 1152950201322 | D103: 云岩区卫生健康局-201022023云岩区疾病预防控制中心 | E103: 20102202304公共卫生岗 | F103: 89.5 | G103: 109 | H103: 198.5 | I103: 66.17 | J103: 39.70 | K103: 84.00 | L103: 33.60 | M103: 73.30
A104: 102 | B104: 王蓝青 | C104: 1152950201626 | D104: 云岩区卫生健康局-201022023云岩区疾病预防控制中心 | E104: 20102202304公共卫生岗 | F104: 106 | G104: 97 | H104: 203 | I104: 67.67 | J104: 40.60 | K104: 81.00 | L104: 32.40 | M104: 73.00
A105: 103 | B105: 李璐璟 | C105: 1152950101430 | D105: 云岩区卫生健康局-201022023云岩区疾病预防控制中心 | E105: 20102202304公共卫生岗 | F105: 108 | G105: 94.5 | H105: 202.5 | I105: 67.50 | J105: 40.50 | K105: 81.00 | L105: 32.40 | M105: 72.90
A106: 104 | B106: 许红梅 | C106: 1152950300503 | D106: 云岩区卫生健康局-201022023云岩区疾病预防控制中心 | E106: 20102202304公共卫生岗 | F106: 100 | G106: 101.5 | H106: 201.5 | I106: 67.17 | J106: 40.30 | K106: 80.40 | L106: 32.16 | M106: 72.46
A107: 105 | B107: 周莉 | C107: 1152950300119 | D107: 云岩区卫生健康局-201022023云岩区疾病预防控制中心 | E107: 20102202304公共卫生岗 | F107: 96 | G107: 103.5 | H107: 199.5 | I107: 66.50 | J107: 39.90 | K107: 81.20 | L107: 32.48 | M107: 72.38
A108: 106 | B108: 樊雪嫣 | C108: 1152950400309 | D108: 云岩区卫生健康局-201022023云岩区疾病预防控制中心 | E108: 20102202304公共卫生岗 | F108: 97.5 | G108: 102 | H108: 199.5 | I108: 66.50 | J108: 39.90 | K108: 79.80 | L108: 31.92 | M108: 71.82
A109: 107 | B109: 张兴 | C109: 1152950300606 | D109: 云岩区卫生健康局-201022023云岩区疾病预防控制中心 | E109: 20102202304公共卫生岗 | F109: 95 | G109: 102 | H109: 197 | I109: 65.67 | J109: 39.40 | K109: 81.00 | L109: 32.40 | M109: 71.80
A110: 108 | B110: 雷丹彦 | C110: 1152950200723 | D110: 云岩区卫生健康局-201022023云岩区疾病预防控制中心 | E110: 20102202304公共卫生岗 | F110: 96 | G110: 102.5 | H110: 198.5 | I110: 66.17 | J110: 39.70 | K110: 78.80 | L110: 31.52 | M110: 71.22
A111: 109 | B111: 李伟 | C111: 1152950200807 | D111: 云岩区卫生健康局-201022023云岩区疾病预防控制中心 | E111: 20102202304公共卫生岗 | F111: 98.5 | G111: 98.5 | H111: 197 | I111: 65.67 | J111: 39.40 | K111: 78.60 | L111: 31.44 | M111: 70.84
A112: 110 | B112: 袁慧敏 | C112: 1152950203315 | D112: 云岩区卫生健康局-201022023云岩区疾病预防控制中心 | E112: 20102202304公共卫生岗 | F112: 107.5 | G112: 89.5 | H112: 197 | I112: 65.67 | J112: 39.40 | K112: 76.80 | L112: 30.72 | M112: 70.12
A113: 111 | B113: 张光昀 | C113: 1152950200329 | D113: 云岩区卫生健康局-201022023云岩区疾病预防控制中心 | E113: 20102202304公共卫生岗 | F113: 92.5 | G113: 104.5 | H113: 197 | I113: 65.67 | J113: 39.40 | K113: 74.00 | L113: 29.60 | M113: 69.00
A114: 112 | B114: 任云烨 | C114: 1152950301115 | D114: 云岩区卫生健康局-201022023云岩区疾病预防控制中心 | E114: 20102202305公共卫生岗 | F114: 102.5 | G114: 99 | H114: 201.5 | I114: 67.17 | J114: 40.30 | K114: 83.60 | L114: 33.44 | M114: 73.74
A115: 113 | B115: 江巍 | C115: 1152950102014 | D115: 云岩区卫生健康局-201022023云岩区疾病预防控制中心 | E115: 20102202305公共卫生岗 | F115: 101 | G115: 101.5 | H115: 202.5 | I115: 67.50 | J115: 40.50 | K115: 82.80 | L115: 33.12 | M115: 73.62
A116: 114 | B116: 罗星晨 | C116: 1152950203201 | D116: 云岩区卫生健康局-201022023云岩区疾病预防控制中心 | E116: 20102202305公共卫生岗 | F116: 105.5 | G116: 95.5 | H116: 201 | I116: 67.00 | J116: 40.20 | K116: 81.60 | L116: 32.64 | M116: 72.84
A117: 115 | B117: 张倩 | C117: 1152950202302 | D117: 云岩区卫生健康局-201022023云岩区疾病预防控制中心 | E117: 20102202305公共卫生岗 | F117: 103.5 | G117: 96 | H117: 199.5 | I117: 66.50 | J117: 39.90 | K117: 80.60 | L117: 32.24 | M117: 72.14
A118: 116 | B118: 张淇淇 | C118: 1152950100430 | D118: 云岩区卫生健康局-201022023云岩区疾病预防控制中心 | E118: 20102202305公共卫生岗 | F118: 103.5 | G118: 98 | H118: 201.5 | I118: 67.17 | J118: 40.30 | K118: 79.00 | L118: 31.60 | M118: 71.90
A119: 117 | B119: 罗慧 | C119: 1152950301118 | D119: 云岩区卫生健康局-201022023云岩区疾病预防控制中心 | E119: 20102202305公共卫生岗 | F119: 111.5 | G119: 94.5 | H119: 206 | I119: 68.67 | J119: 41.20 | K119: 75.80 | L119: 30.32 | M119: 71.52
A120: 118 | B120: 龚津 | C120: 1152950201519 | D120: 云岩区卫生健康局-201022023云岩区疾病预防控制中心 | E120: 20102202305公共卫生岗 | F120: 96 | G120: 86 | H120: 182 | I120: 60.67 | J120: 36.40 | K120: 87.60 | L120: 35.04 | M120: 71.44
A121: 119 | B121: 周林倩 | C121: 1152950201609 | D121: 云岩区卫生健康局-201022023云岩区疾病预防控制中心 | E121: 20102202305公共卫生岗 | F121: 106 | G121: 90.5 | H121: 196.5 | I121: 65.50 | J121: 39.30 | K121: 79.80 | L121: 31.92 | M121: 71.22
A122: 120 | B122: 廖显英 | C122: 1152950101220 | D122: 云岩区卫生健康局-201022023云岩区疾病预防控制中心 | E122: 20102202305公共卫生岗 | F122: 98 | G122: 90.5 | H122: 188.5 | I122: 62.83 | J122: 37.70 | K122: 79.20 | L122: 31.68 | M122: 69.38
A123: 121 | B123: 胡显久 | C123: 1152950300614 | D123: 云岩区卫生健康局-201022023云岩区疾病预防控制中心 | E123: 20102202305公共卫生岗 | F123: 92 | G123: 92.5 | H123: 184.5 | I123: 61.50 | J123: 36.90 | K123: 78.40 | L123: 31.36 | M123: 68.26
A124: 122 | B124: 欧阳浩 | C124: 1152950100305 | D124: 云岩区卫生健康局-201022023云岩区疾病预防控制中心 | E124: 20102202305公共卫生岗 | F124: 85.5 | G124: 90 | H124: 175.5 | I124: 58.50 | J124: 35.10 | K124: 80.20 | L124: 32.08 | M124: 67.18
A125: 123 | B125: 王千惠子 | C125: 1152950200513 | D125: 云岩区卫生健康局-201022023云岩区疾病预防控制中心 | E125: 20102202305公共卫生岗 | F125: 92 | G125: 82 | H125: 174 | I125: 58.00 | J125: 34.80 | K125: 80.40 | L125: 32.16 | M125: 66.96
A126: 124 | B126: 陈晓芸 | C126: 1152950102318 | D126: 云岩区卫生健康局-201022023云岩区疾病预防控制中心 | E126: 20102202305公共卫生岗 | F126: 85 | G126: 89.5 | H126: 174.5 | I126: 58.17 | J126: 34.90 | K126: 80.00 | L126: 32.00 | M126: 66.90
A127: 125 | B127: 唐曌 | C127: 1152950201826 | D127: 云岩区卫生健康局-201022023云岩区疾病预防控制中心 | E127: 20102202305公共卫生岗 | F127: 88.5 | G127: 85 | H127: 173.5 | I127: 57.83 | J127: 34.70 | K127: 78.80 | L127: 31.52 | M127: 66.22
A128: 126 | B128: 祝林鑫 | C128: 1152950401428 | D128: 云岩区卫生健康局-201022023云岩区疾病预防控制中心 | E128: 20102202305公共卫生岗 | F128: 79 | G128: 92 | H128: 171 | I128: 57.00 | J128: 34.20 | K128: 79.60 | L128: 31.84 | M128: 66.04
A129: 127 | B129: 赵雪梅 | C129: 1152950300322 | D129: 云岩区卫生健康局-201022023云岩区疾病预防控制中心 | E129: 20102202305公共卫生岗 | F129: 74.5 | G129: 103.5 | H129: 178 | I129: 59.33 | J129: 35.60 | K129: 弃考 | L129: 0.00 | M129: 35.60
A130: 128 | B130: 杨铃 | C130: 1152950102217 | D130: 云岩区卫生健康局-201022023云岩区疾病预防控制中心 | E130: 20102202305公共卫生岗 | F130: 94 | G130: 79 | H130: 173 | I130: 57.67 | J130: 34.60 | K130: 弃考 | L130: 0.00 | M130: 34.60
A131: 129 | B131: 邓会琼 | C131: 1152950203203 | D131: 云岩区卫生健康局-201022023云岩区疾病预防控制中心 | E131: 20102202305公共卫生岗 | F131: 84.5 | G131: 83.5 | H131: 168 | I131: 56.00 | J131: =ROUND(H131/3*0.6,2) -> 33.60 | K131: 弃考 | L131: 0.00 | M131: =J131+L131 -> 33.60
